Workbook

Sheet Instructions
B3: US Federal Loans
B6: STEP 1 : Complete US loan application form
B12: STEP 2 : Complete Cost of Attendance
B18: STEP 3 : Ensure your name, DOB & student number on visa letter is accurate
B24: STEP 4 : Save spreadsheet and send to usloans@rhul.ac.uk

Sheet Step 1 US loan application form
A1: Federal Direct Loan Application Form for 2026/27
A2: Section 1 Personal Information
A3: First Name
A4: Surname
A5: Date of Birth
A6: Social Security No.
A7: University ID
A8: Course of Study
A9: Level of Study
A10: Section 2 Existing Financial Awards
A11: Will you be in receipt of any bursaries or scholarships during the academic year 2026/27?
A12: if Yes please give full details of the source of funding and amounts
A13: Section 3 Document Checklist
A14: Documents prepared
A18: Section 4 Declaration
A19: I declare that the information I submit to the International Funding Adviser is to the best of my knowledge true and accurate
A20: I understand that the amount RHUL receives will depend on the exchange rate on the day RHUL requests the funds from the US Treasury. If, due to exchange rate fluctuations this means the loans do not cover the full cost of my tuition, I will become liable
A21: Signed & Date

Sheet Step 2 COA
A1: Academic year 2026/27 | B1: Complete the yellow boxes
A2: Undergraduate Student
A3: Course | D3: Dependent 1st year (campus)
A4: Cost of Attendance | B4: Pound Sterling | C4: US Dollar
A5: Tuition | C5: =B5*$B$17 -> 0 | D5: Campus
A6: Housing | B6: 9797 | C6: 14499.56
A7: Food | B7: 4534 | C7: 6710.32
A8: Books/materials | B8: 1400 | C8: 2072
A9: Travel | B9: 2440 | C9: 3611.2
A10: Personal | B10: 3360 | C10: 4972.8
A11: Immigration Health Sub-charge | B11: 2716 | C11: 4019.68
A12: Visa fees | B12: 558 | C12: 825.84
A13: Two flights to US | B13: 2550 | C13: 3774
A14: Origination fees | B14: =C14/B17 -> 571.6216216 | C14: 846
A15: Total | B15: =SUM(B5:B14) -> 27926.62162 | C15: =SUM(C5:C14) -> 41331.4 | D15: Full name
D16: 1st line of address
A17: Exchange Rate £1:$ | B17: 1.48 | D17: City
D18: State
A19: Total COA is | B19: =C15 -> 41331.4 | D19: Post code/ Zip code
D20: Country
B21: OFA (£) | C21: OFA ($) | D21: D.O.B. dd/mm/yyyy
A22: Please enter the amount (in GBP or USD, not both) of any scholarships/ grants you are receiving for 2026/27 academic year | D22: College ID
D23: Course Length in years
A24: Loan Eligibility | B24: Stafford Subsidized | C24: Stafford Unsubsidized | D24: Parent PLUS | E24: Private Loan
A25: COA | B25: =B19 -> 41331.4 | C25: =B25 -> 41331.4 | D25: =B25 -> 41331.4 | E25: =B25 -> 41331.4
A26: SAI (Student Aid Index)
A27: OFA (Other Financial Assistance) | B27: =(B22*B17)+C22 -> 0 | C27: =B30+B27 -> 3500 | D27: =B27+B30+C30 -> 5500 | E27: =B27+B30+C30+D30 -> 25500
A28: Initial Amount | B28: =IF(B25-B26-B27<0,0,B25-B26-B27) -> 41331.4 | C28: =IF(C25-C27<0,0,C25-C27) -> 37831.4 | D28: =IF(D25-D27<0,0,D25-D27) -> 35831.4 | E28: =IF(E25-E27<0,0,E25-E27) -> 15831.4
A29: Maximum Amount | B29: 3500 | C29: 2000 | D29: =E37 -> 20000
A30: HOW MUCH YOU CAN BORROW ==> | B30: =IF(B29<B28,B29,B28) -> 3500 | C30: =IF(C29<C28,C29,C28) -> 2000 | D30: =IF(D29<D28,D29,D28) -> 20000 | E30: =E28 -> 15831.4
B32: Stafford Subsidized | C32: Stafford Unsubsidized | D32: Parent PLUS | E32: Private Loan
A33: Please enter the amount you would like to borrow (this may not be more than the Eligible Amount as shown above) | B33: 0 | C33: 0 | D33: 0 | E33: 0
A36: Annual Limits
A37: Maximum Combined Stafford | B37: 5500 | D37: Parent annual maximum | E37: 20000
A38: Subsidized Award | B38: =B30 -> 3500 | D38: Parent max for student | E38: 65000
A39: Unsubsidized Maximum | B39: =B37-B38 -> 2000 | D39: Previously borrowed by parent for this student | E39: 0
D40: Remaining lifetime max | E40: =E38-E39 -> 65000
A42: Aggregate Limits: | B42: Subsidized | C42: Unsubsidized and Subsidized (combined) | D42: PLUS
A43: Undergraduate - Dependent | B43: 23000 | C43: 31000 | D43: 20,000 per year per child
A44: Undergraduate - Independent | B44: 23000 | C44: 57500 | D44: 65,0000 per child total
A45: Postgraduate (includes undergraduate amounts) | B45: 65500 | C45: 138500
A47: COA = Cost of Attendance
A48: SAI = Student Aid Index
A49: OFA = Other Financial Assistance

Sheet Step 3 Visa Letter
A1: ='Step 2 COA'!E15 -> 0
A2: ='Step 2 COA'!E16 -> 0
A3: ='Step 2 COA'!E17 -> 0
A4: ='Step 2 COA'!E18 -> 0
A5: ='Step 2 COA'!E19 -> 0
A6: ='Step 2 COA'!E20 -> 00:00:00
A11: Notification of Student Loan
A12: For Academic Year 2026/27
A15: This is to certify that
A17: Student Name | B17: ='Step 2 COA'!E15 -> 0
A18: Date of Birth (dd/mm/yyyy) | B18: ='Step 2 COA'!E21 -> 00:00:00
A19: Student/Applicant ID | B19: ='Step 2 COA'!E22 -> 0
A21: has been accepted in a degree-granting program (or otherwise eligible program) at our school.
A23: We participate in the William D. Ford Federal Direct Loan (Direct Loan) Program administered by the
A24: United States (U.S.) Department of Education.
A25: Eligible students from the U.S. who attend our school may borrow through the Direct Loan Program.
A26: Undergraduate students may receive Direct Subsidized Loans and Direct Unsubsidized Loans.
A27: Graduate/professional students may receive Direct Unsubsidized Loans.
A28: Parents may receive Direct PLUS Loans.
A30: Based on our calculation of the student’s financial needs and Direct Loan eligibility for the loan period
A31: Start Date | B31: 2026-09-21
A32: End Date | B32: 2027-06-11
A34: the student (or, in some cases, the student’s parent) will receive the following Direct Loan awards:
A35: Loan Type | B35: Loan Amount
A36: Direct Subsidized Loan | B36: 0
A37: Direct Unsubsidized Loan | B37: 0
A38: Direct PLUS Loan | B38: 0
A39: Private Loan | B39: 0
A40: Total | B40: =SUM(B36:B39) -> 0
A42: The disbursement dates are as follows:
A43: 22nd October 2026 | B43: =I44 -> 0 | E43: Sub Stafford | F43: Unsub Stafford | G43: Plus | H43: Private | I43: Total
A44: 12th February 2027 | B44: =I45 -> 0 | D44: Term 1 | I44: =E44+F44+G44+H44 -> 0
A45: Total | B45: =SUM(B43:B44) -> 0 | D45: Term 2 | I45: =E45+F45+G45+H45 -> 0
A47: This certificate is only valid if printed on school headed paper and signed by the International Funding
A48: Adviser and stamped by the Office stamp.
A55: Amanda Ellis
A57: International Funding Adviser
A60: Date Issued | B60: =TODAY() -> 2026-06-23
